Cogmind - Beta 15 @@@ ROGUE MODE // 2025.06.18 @ 08:44:00 // Winter2022/Polymind Player: Sunvar Result: Escaped! Performance ------------- Evolutions (9) 4500 Regions Visited (23) 4600 Robots Destroyed (63) 315 Value Destroyed (1924) 1924 Prototype IDs (13) 260 Alien Tech Used (0) 0 Bonus (19123) 19123 TOTAL SCORE: 30452 Bonus ------- Polymind Skill 11432 Follower Combat Kills 248 Entered Garrisons 200 Entered DSFs 1000 Met Imprinter 300 Met Warlord at Base 500 MAIN.C Attacked Warlord 500 Met Warlord at Research 2000 Win 3000 Friendly Fire -57 Cogmind --------- Core Integrity 4/1600 Matter 0/0 Energy 48/50 System Corruption 0% Temperature Cool (0) Movement Core (50) Location To Epsilon Eridani Parts ------- > --- POWER (1) -------- (None) > --- PROPULSION (2) --- (None) > --- UTILITY (3) ------ Advanced Melee Analysis Suite > --- WEAPON (1) ------- Power Sword > --- INVENTORY (1) ---- (None) Peak State ------------ > --- POWER ------------ Reinforced Quantum Reactor Reinforced Quantum Reactor > --- PROPULSION ------- Armored Heavy Treads Armored Heavy Treads Armored Heavy Treads > --- UTILITY ---------- Advanced Cooling System Advanced Cooling System Advanced Cooling System Advanced Coolant Injector Improved Core Shielding Improved Utility Shielding Layered Heavy Armor Plating Heavy Reflective Plating Heavy Insulated Plating Advanced Force Field Improved Dynamic Insulation System > --- WEAPON ----------- Multirail Multirail Linear Accelerator Linear Accelerator > --- INVENTORY -------- (None) [Rating: 187] Favorites ----------- Power Light Nuclear Core Engine Backup Power III Power Core Light Nuclear Core Reactor Light Quantum Reactor Propulsion Impulse Thruster Array Treads Light Treads Leg Carbon-fiber Leg Flight Unit Impulse Thruster Array Utility Backup Plating III Device Improved Heat Sink Processor Targeting Computer Protection Backup Plating III Weapon Compact Linear Accelerator Energy Gun Beamcaster Ballistic Gun Autogun Ballistic Cannon Compact Linear Accelerator Impact Weapon Hammer Slashing Weapon Blade Saw Piercing Weapon Plasma Lance Build | -11 -10 -10 -9 -8 -7 -7 -7 -6 -6 -6 -6 -5 -5 -5 -5 -4 -4 -4 -3 -3 -2 -2 -1 ------- Run | Yrd Mat Min Mat Mat Fac DSF Gar Fac Low Low Zio Pro Fac Upp War Pro Fac Ext Res DSF Res Qua Acc Slots Evolved . | . . . . . . . . . . . . . . . . . . . . . . . . Power . | . . . . . . . . . . . . . . . . . . . . . . . . Propulsion . | . . . . . . . . . . . . . . . . . . . . . . . . Utility . | . . . . . . . . . . . . . . . . . . . . . . . . Weapon . | . . . . . . . . . . . . . . . . . . . . . . . . Parts Attached . | . . . . . . . . . . . . . . . . . . . . . . . . Power . | . . . . . . . . . . . . . . . . . . . . . . . . Engine . | . . . . . . . . . . . . . . . . . . . . . . . . Core . | . . . . . . . . . . . . . . . . . . . . . . . . Reactor . | . . . . . . . . . . . . . . . . . . . . . . . . Propulsion . | . . . . . . . . . . . . . . . . . . . . . . . . Treads . | . . . . . . . . . . . . . . . . . . . . . . . . Leg . | . . . . . . . . . . . . . . . . . . . . . . . . Wheel . | . . . . . . . . . . . . . . . . . . . . . . . . Hover . | . . . . . . . . . . . . . . . . . . . . . . . . Flight . | . . . . . . . . . . . . . . . . . . . . . . . . Utility . | . . . . . . . . . . . . . . . . . . . . . . . . Device . | . . . . . . . . . . . . . . . . . . . . . . . . Storage . | . . . . . . . . . . . . . . . . . . . . . . . . Processor . | . . . . . . . . . . . . . . . . . . . . . . . . Hackware . | . . . . . . . . . . . . . . . . . . . . . . . . Protection . | . . . . . . . . . . . . . . . . . . . . . . . . Artifact . | . . . . . . . . . . . . . . . . . . . . . . . . Weapon . | . . . . . . . . . . . . . . . . . . . . . . . . Energy Gun . | . . . . . . . . . . . . . . . . . . . . . . . . Energy Cannon . | . . . . . . . . . . . . . . . . . . . . . . . . Ballistic Gun . | . . . . . . . . . . . . . . . . . . . . . . . . Ballistic Cannon . | . . . . . . . . . . . . . . . . . . . . . . . . Launcher . | . . . . . . . . . . . . . . . . . . . . . . . . Special Weapon . | . . . . . . . . . . . . . . . . . . . . . . . . Impact Weapon . | . . . . . . . . . . . . . . . . . . . . . . . . Slashing Weapon . | . . . . . . . . . . . . . . . . . . . . . . . . Piercing Weapon . | . . . . . . . . . . . . . . . . . . . . . . . . Special Melee Weapon . | . . . . . . . . . . . . . . . . . . . . . . . . Unidentified Prototypes . | . . . . . . . . . . . . . . . . . . . . . . . . Parts Lost 29 | . . . 9 3 . 3 . . . . . 2 . . . . 1 4 . 1 . . 6 Power 5 | . . . . 1 . 1 . . . . . . . . . . . 1 . . . . 2 Propulsion 11 | . . . 4 . . 2 . . . . . 1 . . . . . 1 . . . . 3 Utility 7 | . . . 3 . . . . . . . . . . . . . 1 2 . . . . 1 Weapon 6 | . . . 2 2 . . . . . . . 1 . . . . . . . 1 . . . Highest Loss Streak 4 | . . . 3 2 . 3 . . . . . 2 . . . . 1 3 . 1 . . 4 To Critical Strikes . | . . . . . . . . . . . . . . . . . . . . . . . . Average Backups . | . . . . . . . . . . . . . . . . . . . . . . . . Power . | . . . . . . . . . . . . . . . . . . . . . . . . Propulsion . | . . . . . . . . . . . . . . . . . . . . . . . . Utility . | . . . . . . . . . . . . . . . . . . . . . . . . Weapon . | . . . . . . . . . . . . . . . . . . . . . . . . Tool/Special . | . . . . . . . . . . . . . . . . . . . . . . . . Unused Backups 1 | . . . . . . . . . . . . . . . . . . . . . . 1 . Power . | . . . . . . . . . . . . . . . . . . . . . . . . Propulsion . | . . . . . . . . . . . . . . . . . . . . . . . . Utility . | . . . . . . . . . . . . . . . . . . . . . . . . Weapon . | . . . . . . . . . . . . . . . . . . . . . . . . Tool/Special 1 | . . . . . . . . . . . . . . . . . . . . . . 1 . Average Slot Usage (%) 67 | . 71 91 74 73 100 96 28 28 28 28 28 71 100 100 98 80 79 66 30 29 45 50 58 Engine 5 | . . 8 17 6 25 22 . . . . . . . . . . . . . . 8 10 3 Core 6 | . 14 8 . 9 . . . . . . . 15 25 25 24 . . . . . . . . Treads 1 | . . . 10 . . . . . . . . . . . . . . . . . . . . Leg 7 | . 28 30 7 19 . . . . . . . . . . . . . . . . . . 3 Flight 15 | . . 4 1 1 50 49 14 14 14 14 14 35 50 50 48 20 20 20 10 10 10 10 15 Device 6 | . 14 21 12 2 . . . . . . . . . . . 20 19 9 . . . . 2 Protection 4 | . . . 4 . . . . . . . . . . . . 10 10 10 . . 17 20 15 Energy Gun 3 | . 14 14 7 2 . . . . . . . . . . . . . . . . . . . Ballistic Gun 6 | . . 2 4 15 25 22 . . . . . 15 25 25 24 . . . . . . . 3 Ballistic Cannon 2 | . . . . . . . . . . . . . . . . 10 10 10 10 10 10 10 6 Impact Weapon 1 | . . . 7 7 . . . . . . . . . . . . . . . . . . . Slashing Weapon 2 | . . . . . . 1 14 14 14 14 14 5 . . . . . . . . . . 2 Piercing Weapon 1 | . . . . . . . . . . . . . . . . 10 10 10 10 9 . . . Peak Build Rating 187 | . 10 22 22 15 4 18 6 6 6 6 6 9 9 9 83 83 83 73 34 34 35 36 187 Average Rating 19 | . 7 13 9 9 4 4 6 6 6 6 6 7 9 9 10 83 82 69 34 32 33 35 33 On Entrance 21 | . . 10 22 3 4 4 6 6 6 6 6 6 9 9 9 83 83 73 34 34 26 35 35 Naked Turns 154 | . 55 58 . 19 . 2 . . . . . 3 . . 2 . . . . . . . 15 Heaviest Build 177 | . 9 16 18 12 4 8 2 2 2 2 2 8 8 8 30 30 30 28 9 9 12 12 177 Greatest Support 180 | 3 20 30 40 30 8 9 3 3 3 3 3 8 8 8 32 32 32 32 16 16 16 16 180 Greatest Overweight (x) 9 | . . . 3 3 . . . . . . . . . . . . . 9 . 2 . . 1 Average Overweight (x) . | . . . . . . . . . . . . . . . . . . . . 1 . . . Largest Inventory Capacity 1 | . 1 1 1 1 . . . . . . . . . . 1 1 1 1 1 1 1 1 1 Average Capacity . | . . . . . . . . . . . . . . . . 1 1 1 1 1 1 1 . Most Carried 1 | . . . . . . . . . . . . . . . . . . . . . . 1 . Average Carried . | . . . . . . . . . . . . . . . . . . . . . . . . Final Capacity 1 | . 1 1 1 . . . . . . . . . . . 1 1 1 1 1 1 1 1 1 Final Carried . | . . . . . . . . . . . . . . . . . . . . . . . . Class Distribution -------------------- 24% | Striker 20% | Swarmer 17% | Grunt 16% | Cutter 9% | Brawler 5% | Hunter 3% | Sentry Dominant Class ---------------- Grunt | -10/Materials Grunt | -10/Mines Brawler | -9/Materials Hunter | -8/Materials Swarmer | -7/Factory Swarmer | -7/DSF Cutter | -7/Garrison Cutter | -6/Factory Cutter | -6/Lower Caves Cutter | -6/Lower Caves Cutter | -6/Zion Swarmer | -5/Proximity Caves Swarmer | -5/Factory Swarmer | -5/Upper Caves Swarmer | -5/Warlord Striker | -4/Proximity Caves Striker | -4/Factory Striker | -4/Extension Striker | -3/Research Striker | -3/DSF Striker | -2/Research Striker | -2/Quarantine Striker | -1/Access Resources | -11 -10 -10 -9 -8 -7 -7 -7 -6 -6 -6 -6 -5 -5 -5 -5 -4 -4 -4 -3 -3 -2 -2 -1 ----------- Run | Yrd Mat Min Mat Mat Fac DSF Gar Fac Low Low Zio Pro Fac Upp War Pro Fac Ext Res DSF Res Qua Acc Matter Collected 301 | . . 12 46 77 . . . . . . . 100 . . 16 . . . . . 16 . 34 Remotely . | . . . . . . . . . . . . . . . . . . . . . . . . Salvage Created 2943 | . 83 474 561 522 . . . 16 686 277 . 120 . . . . . . . . . . 204 Parts 146 | . 3 34 36 30 . . . 1 14 7 . 8 . . . . . . . . . . 13 Haulers Intercepted . | . . . . . . . . . . . . . . . . . . . . . . . . Recyclers Shooed . | . . . . . . . . . . . . . . . . . . . . . . . . Parts Field Recycled . | . . . . . . . . . . . . . . . . . . . . . . . . Retrieved Matter . | . . . . . . . . . . . . . . . . . . . . . . . . Parts Self-Destructed 20 | . . . . . . . . . 2 6 . 12 . . . . . . . . . . . Prevented 1 | . . . . . . . . . . . . 1 . . . . . . . . . . . Kills | -11 -10 -10 -9 -8 -7 -7 -7 -6 -6 -6 -6 -5 -5 -5 -5 -4 -4 -4 -3 -3 -2 -2 -1 ------- Run | Yrd Mat Min Mat Mat Fac DSF Gar Fac Low Low Zio Pro Fac Upp War Pro Fac Ext Res DSF Res Qua Acc Combat Hostiles Destroyed 48 | . 2 7 19 12 . . . . . 1 . 2 . . . . . . . . . . 5 Melee 9 | . . . 1 1 . . . . . 1 . 2 . . . . . . . . . . 4 Guns 33 | . 2 7 13 10 . . . . . . . . . . . . . . . . . . 1 Classes Destroyed 14 | . 1 5 2 2 . . . . 2 1 . 1 . . . . . . . . . . . Worker 3 | . . 3 . . . . . . . . . . . . . . . . . . . . . Builder 2 | . . 2 . . . . . . . . . . . . . . . . . . . . . Tunneler 1 | . . 1 . . . . . . . . . . . . . . . . . . . . . Recycler 3 | . . 2 . 1 . . . . . . . . . . . . . . . . . . . Minesweeper 1 | . . . . . . . . . 1 . . . . . . . . . . . . . . Operator 2 | . . . . 1 . . . 1 . . . . . . . . . . . . . . . Drone 1 | . . . . . . . . . . . . 1 . . . . . . . . . . . Watcher 3 | . . . 3 . . . . . . . . . . . . . . . . . . . . Swarmer 14 | . . 4 7 . . . . . . . . 1 . . . . . . . . . . 2 Grunt 24 | . 2 3 9 7 . . . . . . . . . . . . . . . . . . 3 Brawler 1 | . . . . 1 . . . . . . . . . . . . . . . . . . . Sentry 7 | . . . 3 4 . . . . . . . . . . . . . . . . . . . Programmer 1 | . . . . . . . . . . 1 . . . . . . . . . . . . . Decomposer 4 | . . . . . . . . . 2 2 . . . . . . . . . . . . . Samaritan 4 | . . . . . . . . . 2 2 . . . . . . . . . . . . . Best Kill Streak 8 | . 2 3 4 8 . . . 1 1 1 . 1 . . . . . . . . . . 3 Combat Bots Only 5 | . 2 2 4 5 . . . . . 1 . 1 . . . . . . . . . . 3 Max Kills in Single Turn 1 | . 1 1 1 1 . . . 1 1 1 . 1 . . . . . . . . . . 1 Gunslinging . | . . . . . . . . . . . . . . . . . . . . . . . . Exploded . | . . . . . . . . . . . . . . . . . . . . . . . . Melee 1 | . . . 1 1 . . . . . 1 . 1 . . . . . . . . . . 1 Uniques/NPCs Destroyed . | . . . . . . . . . . . . . . . . . . . . . . . . Combat | -11 -10 -10 -9 -8 -7 -7 -7 -6 -6 -6 -6 -5 -5 -5 -5 -4 -4 -4 -3 -3 -2 -2 -1 -------- Run | Yrd Mat Min Mat Mat Fac DSF Gar Fac Low Low Zio Pro Fac Upp War Pro Fac Ext Res DSF Res Qua Acc Hostile Shots Fired 772 | . 16 35 178 106 . 22 . . . 3 . 18 . . 9 . 24 73 . 40 7 . 241 Missed 289 | . 5 14 51 42 . 12 . . . . . 7 . . 5 . 15 22 . 24 3 . 89 Hits 483 | . 11 21 127 64 . 10 . . . 3 . 11 . . 4 . 9 51 . 16 4 . 152 Melee 7 | . . . . 2 . 2 . . . . . . . . . . . . . . . . 3 Projectile 476 | . 11 21 127 62 . 8 . . . 3 . 11 . . 4 . 9 51 . 16 4 . 149 AOE 2 | . . . . . . 2 . . . . . . . . . . . . . . . . . Critical Strikes 18 | . . 1 4 4 . 2 . . . . . . . . . . 1 2 . . . . 4 Damage Taken 8334 | . 126 240 1469 974 . 273 . . . 64 . 218 . . 116 . 178 1017 . 336 78 . 3245 Core 3315 | . 37 98 379 383 . 127 . . . 64 . 87 . . 99 . . 178 . 267 . . 1596 Absorbed by Shields 198 | . . . . . . . . . . . . . . . 12 . . 18 . . . . 168 Redirected to Shielding 76 | . . . . . . . . . . . . . . . . . . . . . . . 76 Ignored by Resistances 25 | . . . . 25 . . . . . . . . . . . . . . . . . . . Regen/Repaired (Parts) 34 | . . . . . . . . . . . . . . . . . . . . . 34 . . Core Remaining (%) 63 | 100 . 46 5 30 . . 81 . . . . 82 . . . 90 . 84 . 79 . 100 . Volleys Fired 209 | . 15 60 63 39 . 3 . . . . . 11 . 1 1 . . . . . 2 . 14 Largest 4 | . 1 1 2 2 . 1 . . . . . 1 . 1 1 . . . . . 1 . 4 Hottest 198 | . 65 75 79 65 . 20 . . . . . 23 . 23 23 . . . . . 58 . 198 Shots Fired 260 | . 15 60 77 69 . 3 . . . . . 11 . 1 1 . . . . . 2 . 21 Gun 248 | . 15 60 77 69 . 3 . . . . . 11 . 1 1 . . . . . . . 11 Cannon 12 | . . . . . . . . . . . . . . . . . . . . . 2 . 10 Launcher . | . . . . . . . . . . . . . . . . . . . . . . . . Special . | . . . . . . . . . . . . . . . . . . . . . . . . Kinetic 136 | . . 8 27 62 . 3 . . . . . 11 . 1 1 . . . . . 2 . 21 Thermal 124 | . 15 52 50 7 . . . . . . . . . . . . . . . . . . . Explosive . | . . . . . . . . . . . . . . . . . . . . . . . . Electromagnetic . | . . . . . . . . . . . . . . . . . . . . . . . . Robot Hit Streak 17 | . 4 6 17 12 . . . . . . . 6 . 4 . . . . . . . . 6 Robot Miss Streak 4 | . 2 3 4 4 . 1 . . . . . 2 . . 1 . . . . . . . 2 Penetration Max . | . . . . . . . . . . . . . . . . . . . . . . . . Secondary Targets 3 | . . . 1 2 . . . . . . . . . . . . . . . . . . . Max Gunslinging Chain 1 | . . . 1 1 . . . . . . . . . . . . . . . . . . . Shots Hit Robots 286 | . 10 35 76 64 . 1 . 2 42 15 . 13 . 1 . . . . . . . . 27 Core Hits 111 | . 4 18 23 26 . . . 1 16 9 . 5 . . . . . . . . . . 9 Critical Kills . | . . . . . . . . . . . . . . . . . . . . . . . . Critical Parts Destroyed 7 | . . . 5 2 . . . . . . . . . . . . . . . . . . . Critical Strikes 24 | . . 1 7 2 . 1 . . 5 3 . 1 . . . . . . . . . . 4 Burn 3 | . . 1 2 . . . . . . . . . . . . . . . . . . . . Destroy 1 | . . . . 1 . . . . . . . . . . . . . . . . . . . Smash 6 | . . . 5 1 . . . . . . . . . . . . . . . . . . . Sever 14 | . . . . . . 1 . . 5 3 . 1 . . . . . . . . . . 4 Melee Attacks 155 | . . . 32 15 . 1 . 2 43 18 . 6 . . . . 9 . 2 . . . 27 Impact 47 | . . . 32 15 . . . . . . . . . . . . . . . . . . . Slashing 97 | . . . . . . 1 . 2 43 18 . 6 . . . . . . . . . . 27 Piercing 11 | . . . . . . . . . . . . . . . . . 9 . 2 . . . . Sneak Attacks 28 | . . . 1 1 . . . 2 11 12 . 1 . . . . . . . . . . . Combat Hostiles 3 | . . . 1 . . . . . . 1 . 1 . . . . . . . . . . . Follow-up Attacks . | . . . . . . . . . . . . . . . . . . . . . . . . Damage Inflicted 6539 | . 160 654 1441 1176 . 20 . 88 1227 485 . 263 . 14 . . . . . . . . 1011 Guns 2701 | . 160 654 838 728 . . . . . . . 175 . 14 . . . . . . . . 132 Cannons . | . . . . . . . . . . . . . . . . . . . . . . . . Explosions . | . . . . . . . . . . . . . . . . . . . . . . . . Melee 3836 | . . . 603 448 . 20 . 88 1227 485 . 88 . . . . . . . . . . 877 Ramming 2 | . . . . . . . . . . . . . . . . . . . . . . . 2 Kinetic 1241 | . . 35 204 681 . . . . . . . 175 . 14 . . . . . . . . 132 Thermal 1460 | . 160 619 634 47 . . . . . . . . . . . . . . . . . . . Explosive . | . . . . . . . . . . . . . . . . . . . . . . . . Electromagnetic . | . . . . . . . . . . . . . . . . . . . . . . . . Impact 1051 | . . . 603 448 . . . . . . . . . . . . . . . . . . . Slashing 2785 | . . . . . . 20 . 88 1227 485 . 88 . . . . . . . . . . 877 Piercing . | . . . . . . . . . . . . . . . . . . . . . . . . Highest Corruption 1 | . . . . . . . . . . . . . . . . . . 1 . . . . . Average Corruption 1 | . . . . . . . . . . . . . . . . . . 1 . . . . . Corruption Purged . | . . . . . . . . . . . . . . . . . . . . . . . . Corruption Blocked . | . . . . . . . . . . . . . . . . . . . . . . . . Effects 1 | . . . . . . . . . . . . . . . . . . 1 . . . . . Message Errors 1 | . . . . . . . . . . . . . . . . . . 1 . . . . . Overload Shots . | . . . . . . . . . . . . . . . . . . . . . . . . Overflow Damage 578 | . . . 138 73 . . . 46 258 63 . . . . . . . . . . . . . Projectiles . | . . . . . . . . . . . . . . . . . . . . . . . . Explosions . | . . . . . . . . . . . . . . . . . . . . . . . . Melee 578 | . . . 138 73 . . . 46 258 63 . . . . . . . . . . . . . Knockbacks 4 | . . . 4 . . . . . . . . . . . . . . . . . . . . Impact 4 | . . . 4 . . . . . . . . . . . . . . . . . . . . Kinetic . | . . . . . . . . . . . . . . . . . . . . . . . . Secondary . | . . . . . . . . . . . . . . . . . . . . . . . . Self-Inflicted Damage 57 | . . . . . . . . . . . . . . . . . . . . . . . 57 Shots 1 | . . . . . . . . . . . . . . . . . . . . . . . 1 Rammed 1 | . . . . . . . . . . . . . . . . . . . . . . . 1 Targets Rammed 1 | . . . . . . . . . . . . . . . . . . . . . . . 1 Kicked . | . . . . . . . . . . . . . . . . . . . . . . . . Crushed . | . . . . . . . . . . . . . . . . . . . . . . . . Highest Temperature 336 | . 43 26 336 30 . . . . . . . 20 . 9 9 . 1 333 . . . . 21 Average Temperature 34 | . 17 8 46 12 . . . . . . . 10 . 9 9 . 1 189 . . . . 9 Received Heat Transfer 1901 | . 69 111 504 513 . 9 . . . . . 27 . . 13 . 100 447 . . 18 . 90 Siege Activations . | . . . . . . . . . . . . . . . . . . . . . . . . Martial Activations . | . . . . . . . . . . . . . . . . . . . . . . . . Shielding Activations . | . . . . . . . . . . . . . . . . . . . . . . . . Robots Disrupted . | . . . . . . . . . . . . . . . . . . . . . . . . Combat Hostiles . | . . . . . . . . . . . . . . . . . . . . . . . . Robots Corrupted 7 | . . . 5 2 . . . . . . . . . . . . . . . . . . . Combat Hostiles 6 | . . . 5 1 . . . . . . . . . . . . . . . . . . . Parts Fried 6 | . . . 5 1 . . . . . . . . . . . . . . . . . . . Impact Corruptions 13 | . . . 9 4 . . . . . . . . . . . . . . . . . . . Robots Melted . | . . . . . . . . . . . . . . . . . . . . . . . . Combat Hostiles . | . . . . . . . . . . . . . . . . . . . . . . . . Parts Melted 9 | . . 5 4 . . . . . . . . . . . . . . . . . . . . Heat Transferred 3071 | . 370 1295 1295 111 . . . . . . . . . . . . . . . . . . . Parts Sabotaged . | . . . . . . . . . . . . . . . . . . . . . . . . Parts Stolen . | . . . . . . . . . . . . . . . . . . . . . . . . Parts Stripped . | . . . . . . . . . . . . . . . . . . . . . . . . Power Chain Reactions . | . . . . . . . . . . . . . . . . . . . . . . . . Alert | -11 -10 -10 -9 -8 -7 -7 -7 -6 -6 -6 -6 -5 -5 -5 -5 -4 -4 -4 -3 -3 -2 -2 -1 ------- Run | Yrd Mat Min Mat Mat Fac DSF Gar Fac Low Low Zio Pro Fac Upp War Pro Fac Ext Res DSF Res Qua Acc Maximum Alert Level 1 | . . . . 1 . . . . . . . . . . . . . . . . . . . Low Security (%) 93 | . 100 100 100 60 100 100 100 100 . . . . 100 . . . 100 100 100 100 100 100 100 Level 1 6 | . . . . 39 . . . . . . . . . . . . . . . . . . . Level 2 . | . . . . . . . . . . . . . . . . . . . . . . . . Level 3 . | . . . . . . . . . . . . . . . . . . . . . . . . Level 4 . | . . . . . . . . . . . . . . . . . . . . . . . . Level 5 . | . . . . . . . . . . . . . . . . . . . . . . . . High Security . | . . . . . . . . . . . . . . . . . . . . . . . . Max Security . | . . . . . . . . . . . . . . . . . . . . . . . . Peak Influence 278 | . 40 55 162 278 132 125 79 38 . . . . . . . . 67 45 7 . 3 4 125 Initial 132 | . . 7 18 34 132 95 71 38 . . . . . . . . . 22 7 . . . . Average 52 | . 9 13 91 134 132 106 70 34 . . . . . . . . 24 14 1 . . . 31 Influence Increases 2257 | . 70 225 520 532 5 30 43 5 10 20 . 109 . . 112 . 121 127 4 . 6 14 304 Destroy 0b10 Robot/C 1080 | . 40 140 380 240 . . 20 . . 20 . 40 . . 80 . . 20 . . . . 100 Destroy 0b10 Robot/NC 95 | . . 40 15 10 . . . 5 10 . . 15 . . . . . . . . . . . Destroy Leader 176 | . . 30 76 70 . . . . . . . . . . . . . . . . . . . Allied During Kill 44 | . . . . . . . 1 . . . . 9 . . 32 . . 2 . . . . . Successful Hack 30 | . . . 4 . 5 . 7 . . . . . . . . . . . . . . 14 . Disable Machine 105 | . . . 15 45 . . . . . . . . . . . . 15 . . . . . 30 Destroy Structure 52 | . . . . 2 . . . . . . . . . . . . 16 . 4 . 6 . 24 Partial Spotted 105 | . . . . . . . 15 . . . . . . . . . 15 45 . . . . 30 Lose Combat Pursuer 570 | . 30 15 30 165 . 30 . . . . . 45 . . . . 75 60 . . . . 120 Influence Decreases 2132 | . 50 198 484 323 160 72 64 56 33 20 . 109 . . 100 12 74 159 19 . 6 14 179 Entered New Map 407 | . . 13 29 49 160 42 24 36 9 . . . . . . 12 . 25 8 . . . . Time Decay 1348 | . 50 182 370 247 . . . 20 24 20 . 69 . . 80 . 64 72 11 . 6 14 119 Lost Part 250 | . . . 80 20 . 30 . . . . . 20 . . . . 10 30 . . . . 60 Lost Ally 112 | . . . . . . . 40 . . . . 20 . . 20 . . 32 . . . . . Miscellaneous 15 | . . 3 5 7 . . . . . . . . . . . . . . . . . . . Squads Dispatched 17 | . 1 . 2 2 . 2 . . . . . . . . . . . 3 2 . 1 . 4 Investigation 6 | . . . 1 1 . . . . . . . . . . . . . 1 1 . . . 2 Extermination 2 | . . . . . . . . . . . . . . . . . . . . . . . 2 Reinforcement 9 | . 1 . 1 1 . 2 . . . . . . . . . . . 2 1 . 1 . . Assault . | . . . . . . . . . . . . . . . . . . . . . . . . Garrison . | . . . . . . . . . . . . . . . . . . . . . . . . Intercept . | . . . . . . . . . . . . . . . . . . . . . . . . Searches Triggered . | . . . . . . . . . . . . . . . . . . . . . . . . Construction Impeded . | . . . . . . . . . . . . . . . . . . . . . . . . Haulers Reinforced 1 | . . . . . . . . . . . . . . . . . . . . . 1 . . Active Scanning Responses . | . . . . . . . . . . . . . . . . . . . . . . . . Cargo Convoy Interrupts . | . . . . . . . . . . . . . . . . . . . . . . . . Stealth | -11 -10 -10 -9 -8 -7 -7 -7 -6 -6 -6 -6 -5 -5 -5 -5 -4 -4 -4 -3 -3 -2 -2 -1 --------- Run | Yrd Mat Min Mat Mat Fac DSF Gar Fac Low Low Zio Pro Fac Upp War Pro Fac Ext Res DSF Res Qua Acc Distress Signals 8 | . . . 2 1 . . . . . . . . . . . . . 1 . . 3 . 1 Communications Jammed . | . . . . . . . . . . . . . . . . . . . . . . . . Distress Signals . | . . . . . . . . . . . . . . . . . . . . . . . . Times Spotted 255 | . 10 11 37 37 . 12 . . . 1 . 15 . . 27 . 9 25 1 2 9 . 59 Peak Tracking Total 22 | . 4 3 8 8 . 5 . . . 1 . 12 . . 22 . 3 16 . 2 4 . 13 Tactical Retreats 24 | . 1 1 2 6 . 2 . . . . . 2 . . . . 3 2 . . . . 5 Traps | -11 -10 -10 -9 -8 -7 -7 -7 -6 -6 -6 -6 -5 -5 -5 -5 -4 -4 -4 -3 -3 -2 -2 -1 ------- Run | Yrd Mat Min Mat Mat Fac DSF Gar Fac Low Low Zio Pro Fac Upp War Pro Fac Ext Res DSF Res Qua Acc Traps Triggered 6 | . . . 1 1 . . . . . . . . . . . . . 2 . 1 . . 1 Indirectly . | . . . . . . . . . . . . . . . . . . . . . . . . Trap Hack Attempts . | . . . . . . . . . . . . . . . . . . . . . . . . Triggered . | . . . . . . . . . . . . . . . . . . . . . . . . Disarmed . | . . . . . . . . . . . . . . . . . . . . . . . . Reprogrammed . | . . . . . . . . . . . . . . . . . . . . . . . . Reused . | . . . . . . . . . . . . . . . . . . . . . . . . Traps Extracted . | . . . . . . . . . . . . . . . . . . . . . . . . Installed . | . . . . . . . . . . . . . . . . . . . . . . . . Triggered . | . . . . . . . . . . . . . . . . . . . . . . . . Machines | -11 -10 -10 -9 -8 -7 -7 -7 -6 -6 -6 -6 -5 -5 -5 -5 -4 -4 -4 -3 -3 -2 -2 -1 ---------- Run | Yrd Mat Min Mat Mat Fac DSF Gar Fac Low Low Zio Pro Fac Upp War Pro Fac Ext Res DSF Res Qua Acc Machines Disabled 8 | . . . 1 3 . . . . . 1 . . . . . . 1 . . . . . 2 Max in Single Turn 1 | . . . 1 1 . . . . . 1 . . . . . . 1 . . . . . 1 Energy Cycler 2 | . . . . . . . . . . . . . . . . . . 1 . . . . 1 Machines Repaired . | . . . . . . . . . . . . . . . . . . . . . . . . Machines Dismantled . | . . . . . . . . . . . . . . . . . . . . . . . . Machines Sabotaged . | . . . . . . . . . . . . . . . . . . . . . . . . Overloaded Fab Kills . | . . . . . . . . . . . . . . . . . . . . . . . . Hacking | -11 -10 -10 -9 -8 -7 -7 -7 -6 -6 -6 -6 -5 -5 -5 -5 -4 -4 -4 -3 -3 -2 -2 -1 --------- Run | Yrd Mat Min Mat Mat Fac DSF Gar Fac Low Low Zio Pro Fac Upp War Pro Fac Ext Res DSF Res Qua Acc Machines Accessed 18 | . . . 1 . 1 . 2 . . . . . . . 2 . 2 1 3 . 1 3 2 Terminals 15 | . . . 1 . 1 . 2 . . . . . . . . . 2 1 3 . 1 3 1 Fabricators . | . . . . . . . . . . . . . . . . . . . . . . . . Repair Stations . | . . . . . . . . . . . . . . . . . . . . . . . . Recycling Units . | . . . . . . . . . . . . . . . . . . . . . . . . Scanalyzers . | . . . . . . . . . . . . . . . . . . . . . . . . Garrison Access 1 | . . . . . . . . . . . . . . . . . . . . . . . 1 Total Hacks 35 | . . . 2 . 1 . 3 . . . . . . . 5 . 3 2 5 . 4 7 3 Successful 11 | . . . 1 . 1 . 1 . . . . . . . 5 . . . 2 . . 1 . Failed 24 | . . . 1 . . . 2 . . . . . . . . . 3 2 3 . 4 6 3 Catastrophic 8 | . . . . . . . . . . . . . . . . . 3 1 2 . 1 . 1 Database Lockouts . | . . . . . . . . . . . . . . . . . . . . . . . . Manual 13 | . . . . . . . . . . . . . . . . . 3 . 2 . 4 4 . Terminals 28 | . . . 2 . 1 . 3 . . . . . . . . . 3 2 5 . 4 7 1 Fabricators . | . . . . . . . . . . . . . . . . . . . . . . . . Repair Stations . | . . . . . . . . . . . . . . . . . . . . . . . . Recycling Units . | . . . . . . . . . . . . . . . . . . . . . . . . Scanalyzers . | . . . . . . . . . . . . . . . . . . . . . . . . Garrison Access 2 | . . . . . . . . . . . . . . . . . . . . . . . 2 Terminal Hacks 10 | . . . 1 . 1 . 1 . . . . . . . 5 . . . 2 . . . . Record 1 | . . . . . . . . . . . . . . . . . . . 1 . . . . Prototype ID Bank 4 | . . . . . . . . . . . . . . . 4 . . . . . . . . Open Door 2 | . . . . . . . 1 . . . . . . . 1 . . . . . . . . Open DSF 2 | . . . . . 1 . . . . . . . . . . . . . 1 . . . . Locate Traps 1 | . . . 1 . . . . . . . . . . . . . . . . . . . . Fabricator Hacks . | . . . . . . . . . . . . . . . . . . . . . . . . Repair Station Hacks . | . . . . . . . . . . . . . . . . . . . . . . . . Recycling Unit Hacks . | . . . . . . . . . . . . . . . . . . . . . . . . Scanalyzer . | . . . . . . . . . . . . . . . . . . . . . . . . Garrison Access Hacks . | . . . . . . . . . . . . . . . . . . . . . . . . Unauthorized Hacks 1 | . . . . . . . . . . . . . . . . . . . . . . 1 . Terminals 1 | . . . . . . . . . . . . . . . . . . . . . . 1 . Botnet 1 | . . . . . . . . . . . . . . . . . . . . . . 1 . Fabricators . | . . . . . . . . . . . . . . . . . . . . . . . . Repair Stations . | . . . . . . . . . . . . . . . . . . . . . . . . Recycling Units . | . . . . . . . . . . . . . . . . . . . . . . . . Scanalyzers . | . . . . . . . . . . . . . . . . . . . . . . . . Garrison Access . | . . . . . . . . . . . . . . . . . . . . . . . . Data Cores Recovered 2 | . . . . 1 . . . 1 . . . . . . . . . . . . . . . Used . | . . . . . . . . . . . . . . . . . . . . . . . . Hacking Detections 12 | . . . . . . . 1 . . . . . . . . . 2 1 2 . 1 3 2 Full Trace Events 3 | . . . . . . . . . . . . . . . . . . 1 1 . . . 1 Feedback Events 1 | . . . . . . . . . . . . . . . . . . 1 . . . . . Corruption 1 | . . . . . . . . . . . . . . . . . . 1 . . . . . Feedback Blocked . | . . . . . . . . . . . . . . . . . . . . . . . . Robot Schematics Acquired . | . . . . . . . . . . . . . . . . . . . . . . . . Robots Built . | . . . . . . . . . . . . . . . . . . . . . . . . Authchips . | . . . . . . . . . . . . . . . . . . . . . . . . Time . | . . . . . . . . . . . . . . . . . . . . . . . . Total Robot Build Rating . | . . . . . . . . . . . . . . . . . . . . . . . . Part Schematics Acquired . | . . . . . . . . . . . . . . . . . . . . . . . . Parts Built . | . . . . . . . . . . . . . . . . . . . . . . . . Authchips . | . . . . . . . . . . . . . . . . . . . . . . . . Time . | . . . . . . . . . . . . . . . . . . . . . . . . Total Part Build Rating . | . . . . . . . . . . . . . . . . . . . . . . . . Parts Repaired . | . . . . . . . . . . . . . . . . . . . . . . . . Time . | . . . . . . . . . . . . . . . . . . . . . . . . Parts Recycled . | . . . . . . . . . . . . . . . . . . . . . . . . Recycled Matter . | . . . . . . . . . . . . . . . . . . . . . . . . Retrieved Matter . | . . . . . . . . . . . . . . . . . . . . . . . . Retrieved Components . | . . . . . . . . . . . . . . . . . . . . . . . . Parts Scanalyzed . | . . . . . . . . . . . . . . . . . . . . . . . . Part Schematics Acquired . | . . . . . . . . . . . . . . . . . . . . . . . . Parts Damaged . | . . . . . . . . . . . . . . . . . . . . . . . . Bothacking | -11 -10 -10 -9 -8 -7 -7 -7 -6 -6 -6 -6 -5 -5 -5 -5 -4 -4 -4 -3 -3 -2 -2 -1 ------------ Run | Yrd Mat Min Mat Mat Fac DSF Gar Fac Low Low Zio Pro Fac Upp War Pro Fac Ext Res DSF Res Qua Acc Used RIF Installer . | . . . . . . . . . . . . . . . . . . . . . . . . Robots Hacked 15 | . 1 1 3 3 . 1 . . . . . 1 . . . . . . . . . . 5 Non-combat . | . . . . . . . . . . . . . . . . . . . . . . . . Combat 15 | . 1 1 3 3 . 1 . . . . . 1 . . . . . . . . . . 5 Robot Hacks Applied 22 | . 1 1 3 6 . 1 . . . . . 1 . . . . . . . . . . 9 find_shortcuts 15 | . 1 1 3 3 . 1 . . . . . 1 . . . . . . . . . . 5 find_garrison 7 | . . . . 3 . . . . . . . . . . . . . . . . . . 4 Relay Couplers Released . | . . . . . . . . . . . . . . . . . . . . . . . . Fabnet Peak Effective % . | . . . . . . . . . . . . . . . . . . . . . . . . Robots Rewired 10 | . . . . . . . 2 . . . . . . . 5 . . 3 . . . . . Allies Hacked . | . . . . . . . . . . . . . . . . . . . . . . . . Hacks Repelled . | . . . . . . . . . . . . . . . . . . . . . . . . Allies | -11 -10 -10 -9 -8 -7 -7 -7 -6 -6 -6 -6 -5 -5 -5 -5 -4 -4 -4 -3 -3 -2 -2 -1 -------- Run | Yrd Mat Min Mat Mat Fac DSF Gar Fac Low Low Zio Pro Fac Upp War Pro Fac Ext Res DSF Res Qua Acc Total Allies 15 | . . . . . . . 2 . . . 5 . . . 5 . . 3 . . . . . Largest Group 5 | . . . . . . . 2 . . . 5 5 . . 5 . . 1 . . . . . Highest-Rated Group 246 | . . . . . . . 40 . . . 161 161 . . 246 . . 29 . . . . . Highest-Rated Ally 64 | . . . . . . . 20 . . . 51 51 . . 64 . . 29 . . . . . Total Orders 3 | . . . . . . . . . . . . . . . 3 . . . . . . . . STAY 2 | . . . . . . . . . . . . . . . 2 . . . . . . . . FOLLOW 1 | . . . . . . . . . . . . . . . 1 . . . . . . . . Ally Attacks 55 | . . . . . . . 1 . . . . 15 . . 35 . . 4 . . . . . Total Damage 1450 | . . . . . . . 22 . . . . 219 . . 1070 . . 139 . . . . . Kills 8 | . . . . . . . 1 . . . . 2 . . 4 . . 1 . . . . . Allies Corrupted . | . . . . . . . . . . . . . . . . . . . . . . . . Allies Melted 2 | . . . . . . . . . . . . . . . . . . . . . 2 . . Intel | -11 -10 -10 -9 -8 -7 -7 -7 -6 -6 -6 -6 -5 -5 -5 -5 -4 -4 -4 -3 -3 -2 -2 -1 ------- Run | Yrd Mat Min Mat Mat Fac DSF Gar Fac Low Low Zio Pro Fac Upp War Pro Fac Ext Res DSF Res Qua Acc Active Infowar (turns) . | . . . . . . . . . . . . . . . . . . . . . . . . Robot Analysis Total 12 | . 1 2 2 1 . 1 . . . . . 1 . . 1 . . . . . . . 3 Derelict Logs Recovered 6 | . . 1 . . . . . . 1 1 . 1 . 1 . 1 . . . . . . . Drone Launches . | . . . . . . . . . . . . . . . . . . . . . . . . Drone Recoveries . | . . . . . . . . . . . . . . . . . . . . . . . . Exploration | -11 -10 -10 -9 -8 -7 -7 -7 -6 -6 -6 -6 -5 -5 -5 -5 -4 -4 -4 -3 -3 -2 -2 -1 ------------- Run | Yrd Mat Min Mat Mat Fac DSF Gar Fac Low Low Zio Pro Fac Upp War Pro Fac Ext Res DSF Res Qua Acc Turns Passed 6308 | . 200 690 928 705 19 103 79 41 275 233 301 217 83 109 648 145 180 181 124 93 482 101 371 Spaces Moved 8516 | 1 167 601 392 426 52 134 150 100 416 461 725 459 260 328 793 330 329 330 264 77 887 221 613 Core 479 | 1 70 81 108 126 . 4 . . . . . . . . 4 . . 2 . 59 . . 24 Treads 61 | . . . 60 . . . . . . . . . . . . . . . . . . . 1 Legs 878 | . 97 381 158 239 . . . . . . . . . . . . . . . . . . 3 Wheels . | . . . . . . . . . . . . . . . . . . . . . . . . Hover . | . . . . . . . . . . . . . . . . . . . . . . . . Flight 7098 | . . 139 66 61 52 130 150 100 416 461 725 459 260 328 789 330 329 328 264 18 887 221 585 Fastest Speed 29 | 50 50 37 40 37 37 29 35 35 35 35 35 32 32 32 32 42 42 42 45 45 45 45 34 Average Speed 52 | 50 90 91 134 120 37 36 35 35 35 35 35 32 32 32 32 42 42 44 45 120 45 45 44 Slowest Speed 500 | 50 120 120 200 200 37 50 35 35 35 35 35 35 32 32 50 42 42 500 45 150 45 45 170 Overloaded Moves . | . . . . . . . . . . . . . . . . . . . . . . . . Propulsion Burnouts . | . . . . . . . . . . . . . . . . . . . . . . . . Robots Hopped 49 | . . . 2 . . . . 1 . . . . . . 2 . 5 8 3 1 19 . 8 Potential Cave-ins . | . . . . . . . . . . . . . . . . . . . . . . . . Cave-ins Triggered . | . . . . . . . . . . . . . . . . . . . . . . . . Exploration Rate (%) 44 | 2 28 95 45 38 3 88 33 5 53 59 84 71 7 58 86 64 9 61 8 88 23 33 27 Regions Visited 23 Branch Regions 10 Pre-discovered Areas 5 | . . . . . . . . . . . 5 . . . . . . . . . . . . Known Exits Taken 3 | . . . . . 1 . . . . . . . 1 . . . . . 1 . . . . Unknown Exits Taken 17 | 1 1 1 1 1 . . . 1 1 1 1 1 . 1 1 1 1 1 . . 1 1 . Scrap Searched 11 | . . 1 . . . . . . 1 1 3 2 . 1 . 2 . . . . . . . Spaces Dug 15 | . . . . . . . . . . . . . . . . . 8 . 2 . 2 . 3 Terrain Destroyed 18 | . . . . . . . . . . . . . . . . . 8 . 2 . 2 . 6 Melee 10 | . . . . . . . . . . . . . . . . . 8 . 2 . . . . Projectile 5 | . . . . . . . . . . . . . . . . . . . . . 2 . 3 AOE 3 | . . . . . . . . . . . . . . . . . . . . . . . 3 Terrain Rammed . | . . . . . . . . . . . . . . . . . . . . . . . . Walls Destroyed . | . . . . . . . . . . . . . . . . . . . . . . . . Machines Disabled . | . . . . . . . . . . . . . . . . . . . . . . . . Actions | -11 -10 -10 -9 -8 -7 -7 -7 -6 -6 -6 -6 -5 -5 -5 -5 -4 -4 -4 -3 -3 -2 -2 -1 --------- Run | Yrd Mat Min Mat Mat Fac DSF Gar Fac Low Low Zio Pro Fac Upp War Pro Fac Ext Res DSF Res Qua Acc Total 9775 | . 200 683 662 523 51 183 175 100 458 495 771 504 259 330 1180 335 351 354 262 75 948 222 654 Wait 866 | . 19 23 178 44 . 46 17 . . 17 47 29 . 2 328 6 19 4 . . 79 . 8 Move 8410 | . 166 600 387 425 51 133 149 97 415 460 724 458 259 327 788 329 318 315 257 74 860 220 598 Hop 33 | . . . 2 . . . . 1 . . . . . . 2 . 5 6 3 1 7 . 6 Pick Up 1 | . . . . . . . . . . . . . . . . . . . . . . 1 . Fast Attach . | . . . . . . . . . . . . . . . . . . . . . . . . Attach . | . . . . . . . . . . . . . . . . . . . . . . . . Detach . | . . . . . . . . . . . . . . . . . . . . . . . . Swap . | . . . . . . . . . . . . . . . . . . . . . . . . Drop 1 | . . . . . . . . . . . . . . . . . . . . . . 1 . Fire 209 | . 15 60 63 39 . 3 . . . . . 11 . 1 1 . . . . . 2 . 14 Melee 155 | . . . 32 15 . 1 . 2 43 18 . 6 . . . . 9 . 2 . . . 27 Ram 1 | . . . . . . . . . . . . . . . . . . . . . . . 1 Kick . | . . . . . . . . . . . . . . . . . . . . . . . . Crush . | . . . . . . . . . . . . . . . . . . . . . . . . Escape Stasis 6 | . . . . . . . . . . . . . . . . . . 6 . . . . . Rewire 93 | . . . . . . . 9 . . . . . . . 61 . . 23 . . . . . Trap . | . . . . . . . . . . . . . . . . . . . . . . . . Miscellaneous . | . . . . . . . . . . . . . . . . . . . . . . . . Route ------- -11/Scrapyard -10/Materials -10/Mines (discovered 3 exits: *Mat x2 / [*Sub]) -9/Materials (discovered 2 exits: [*Mat x2]) -8/Materials (discovered 2 exits: *Fac / [*Sto]) -7/Factory -7/DSF -7/Garrison -6/Factory -6/Lower Caves -6/Lower Caves -6/Zion -5/Proximity Caves -5/Factory -5/Upper Caves (discovered 2 exits: [*Upp] / *War) -5/Warlord -4/Proximity Caves -4/Factory -4/Extension (discovered 2 exits: *Res / [*Cet]) -3/Research (discovered 2 exits: Res / DSF) -3/DSF -2/Research -2/Quarantine -1/Access To Epsilon Eridani History --------- Turn | Location | Event 1 | -11/Scrapyard | Discovered new exit (range 0) 1 | -11/Scrapyard | Entered Materials 110 | -10/Materials | Discovered new exit (range 6) 201 | -10/Materials | Entered Mines 209 | -10/Mines | Discovered new exit (range 6) 245 | -10/Mines | Met a Derelict bent on vengeance 321 | -10/Mines | Learned Materials stockpile data 496 | -10/Mines | Received a Rocket Launcher from a helpful Derelict 580 | -10/Mines | Discovered new exit (range 12) 610 | -10/Mines | Joined a pair of Derelicts in attacking an 0b10 outpost 645 | -10/Mines | Core integrity fell below 50% 781 | -10/Mines | Discovered new exit (range 14) 891 | -10/Mines | Entered Materials 1138 | -9/Materials | Discovered new exit (range 4) 1194 | -9/Materials | Lost 3 parts (1n1u1w) 1492 | -9/Materials | Discovered new exit (range 8) 1550 | -9/Materials | Core integrity fell below 50% 1596 | -9/Materials | Lost 3 parts (2n1u) 1599 | -9/Materials | Core integrity fell below 20% 1819 | -9/Materials | Entered another Materials area 1836 | -8/Materials | Discovered new exit (range 10) 2173 | -8/Materials | Core integrity fell below 50% 2293 | -8/Materials | Discovered new exit (range 9) 2524 | -8/Materials | Entered Factory 2543 | -7/Factory | Identified exit to DSF 2543 | -7/Factory | Entered DSF 2571 | -7/DSF | Additional patrols routed to DSF 2641 | -7/DSF | Discovered new exit (range 16) 2646 | -7/DSF | Entered Garrison 2654 | -7/Garrison | Triggered checkpoint 2670 | -7/Garrison | Triggered checkpoint 2671 | -7/Garrison | Lost 3 parts (1p2n) 2689 | -7/Garrison | Discovered new exit (range 13) 2725 | -7/Garrison | Entered Factory 2761 | -6/Factory | Discovered new exit (range 15) 2766 | -6/Factory | Entered Lower Caves 2995 | -6/Lower Caves | Discovered new exit (range 10) 3041 | -6/Lower Caves | Entered another Lower Caves area 3053 | -6/Lower Caves | Acquired the password to a Derelict Tinkerer's latest research 3071 | -6/Lower Caves | Entered a destroyed Warlord outpost 3134 | -6/Lower Caves | Caught by Unaware searching for contraband prototypes 3225 | -6/Lower Caves | Learned Factory terminal intel 3261 | -6/Lower Caves | Discovered new exit (range 8) 3274 | -6/Lower Caves | Entered Zion 3393 | -6/Zion | Learned location of Armory (-3) 3408 | -6/Zion | Met Imprinter 3438 | -6/Zion | Learned location of Quarantine (-2) 3521 | -6/Zion | Gained Derelict followers 3525 | -6/Zion | Discovered new exit (range 10) 3575 | -6/Zion | Entered Proximity Caves 3575 | -5/Proximity Caves | Accompanied by 5 allies 3629 | -5/Proximity Caves | Attracted the attention of an 0b10 base 3668 | -5/Proximity Caves | Lost 5 allies 3675 | -5/Proximity Caves | Learned Factory terminal intel 3745 | -5/Proximity Caves | Spotted B-75 Beast 3784 | -5/Proximity Caves | Discovered new exit (range 15) 3792 | -5/Proximity Caves | Entered Factory 3793 | -5/Factory | Identified exit to Upper Caves 3794 | -5/Factory | Loaded intel: 26 terminal locations 3875 | -5/Factory | Entered Upper Caves 3953 | -5/Upper Caves | Learned Factory emergency access door positions 3963 | -5/Upper Caves | Discovered new exit (range 11) 3983 | -5/Upper Caves | A Derelict revealed a hidden shortcut to "reach the base" 3984 | -5/Upper Caves | Entered Warlord 4192 | -5/Warlord | Met Warlord 4194 | -5/Warlord | Warlord's base attacked by MAIN.C 4451 | -5/Warlord | Warlord forces counterattacked 4520 | -5/Warlord | Opened side exit 4529 | -5/Warlord | Discovered new exit (range 15) 4602 | -5/Warlord | Spotted Striker 4618 | -5/Warlord | Spotted Executioner 4620 | -5/Warlord | Spotted Striker 4621 | -5/Warlord | Spotted Executioner 4621 | -5/Warlord | Took control of Striker 4632 | -5/Warlord | Entered Proximity Caves 4738 | -4/Proximity Caves | Learned location of 1 exit from Research 4770 | -4/Proximity Caves | Discovered new exit (range 13) 4777 | -4/Proximity Caves | Entered Factory 4779 | -4/Factory | Loaded intel: 27 terminal locations 4950 | -4/Factory | Discovered new exit (range 16) 4957 | -4/Factory | Entered Extension 5041 | -4/Extension | Lost 3 allies 5071 | -4/Extension | Spotted B-86 Titan 5074 | -4/Extension | Spotted B-86 Titan 5128 | -4/Extension | Energy Cycler disabled 5128 | -4/Extension | Rescued a captive Derelict 5128 | -4/Extension | Rescued a captive Derelict 5130 | -4/Extension | Rescued a captive Derelict 5132 | -4/Extension | Discovered new exit (range 13) 5134 | -4/Extension | Discovered new exit (range 10) 5135 | -4/Extension | Rescued a captive Derelict 5138 | -4/Extension | Entered Research 5139 | -3/Research | Identified exit to Research 5169 | -3/Research | Lost 3 parts (1n2u) 5209 | -3/Research | Spotted B-86 Titan 5262 | -3/Research | Identified exit to DSF 5262 | -3/Research | Entered DSF 5347 | -3/DSF | Discovered exit to Research (range 15) 5355 | -3/DSF | Entered Research 5355 | -2/Research | Warlord forces began assault on 0b10 5397 | -2/Research | Met up with Warlord 5465 | -2/Research | Research machine network offline 5702 | -2/Research | Borebot progress halted 5794 | -2/Research | Spotted B-90 Cyclops 5831 | -2/Research | Discovered new exit (range 15) 5837 | -2/Research | Entered Quarantine 5886 | -2/Quarantine | Discovered new exit (range 8) 5887 | -2/Quarantine | Spotted Alpha 7 5895 | -2/Quarantine | Found Alien Artifact 5916 | -2/Quarantine | Spotted Fortress 5938 | -2/Quarantine | Entered Access 6015 | -1/Access | Energy Cycler disabled 6167 | -1/Access | Spotted Striker 6203 | -1/Access | Spotted B-99 Colossus 6204 | -1/Access | Spotted B-99 Colossus 6208 | -1/Access | Took control of B-99 Colossus 6219 | -1/Access | Spotted B-99 Colossus 6225 | -1/Access | Core integrity fell below 50% 6244 | -1/Access | Core integrity fell below 20% 6308 | -1/Access | Discovered new exit (range 3) 6309 | *** | Escaped! Last Messages --------------- 06283_ G-73 Enforcer Phase Gun severed. 06287_ ALERT: Potential suspicious activity detected, Programmers report to Access Zone 7C. 06301_ G-73 Enforcer destroyed. 06301_ Flexi-carbon Leg destroyed. 06301_ Imp. Core Shielding blasted off. 06301_ Knocked back. 06301_ Penetrated by Slug. 06301_ Slug penetrates Sealed Heavy Doors. 06301_ Penetrated by Slug. 06304_ Slug penetrates Sealed Heavy Doors. 06304_ Penetrated by Slug. 06304_ Slug penetrates Main Access Shell. 06304_ Slug penetrates Sealed Heavy Doors. 06304_ Penetrated by Slug. 06304_ Slug penetrates Main Access Shell. 06305_ Main Access Shell breached. 06308_ EXIT=FOUND [Achievement: The Little Core That Could] Map ----- +----------------------------------------------------+ | ????????######## #???? ?????????????????????? | | ???????????????# #???? ??????????????????????? | | ???????######### ########?????????????????????? | | ??? #?????????????????????? | | ??? #?????????????????????? | | ??? % #?????????????????????? | | ??? #?????????????????????? | | ???? ################# #?????????????????????? | | ????????????????????? # #?????????????????????? | | ???????????????????#### ####??????????????????? | | ???????????????????# #??????????????????? | | ???????????????????# #??????????????????? | | ???????????????????#% #??????????????????? | | ???????????????????# % [ #??????????????????? | | ???????????????????# [[[!!#??????????????????? | | ???????????????????# !*=*%%#??????????????????? | | +??????????????????# % =%==%#??????????????????? | | ???????????????????#"""""""%""#??????????????????? | | ??????????????????????????"["?????????+??????????? | | ??????????????????????????"["????????????????????? | | ???????????????????#""""""" ""#???????+??????????? | | ???????????????????# #??????????????????? | | ???????????????????# """ "" #??????????????????? | | ??????????????????????" " #??????????????????? | | ??????????????????????" "" " #??????????????????? | | ??????????????????????" "l " #??????????????????? | | ??????????????????????" "? #??????????????????? | | ??????????????????????""""""? #??????????????????? | | ????????????????????????????? #??????????????????? | | ????????????????????????????? #??????????????????? | | ?????????????????????????????? ??????????????????? | | ??????????????????????????????#??????????????????? | | ?????????????????????????????????????????????????? | | ?????????????????????????????????????????????????? | | ?????????????????????????????????????????????????? | | ?????????????????????????????????????????????????? | | ?????????????????????????????????????????????????? | | ?????????????????????????????????????????????????? | | ???????????????H?????????????????????????????????? | | ?????????????????????????????????????????????????? | | ?????????????????????????????????????????????????? | | ?????????????????????????????????????????????????? | | ?????????????????????????????????????????????????? | | ?????????????????????????????????????????????????? | | ?????????????????????????????????????????????????? | | ?????????????????????????????????????????????????? | | ?????????????????????????????????????????????????? | | ?????????????????????????????????????????????????? | | ?????????????????????????????????????????????????? | | ?????????????????????????????????????????????????? | +----------------------------------------------------+ Best States ------------- Heat Dissipation 118 Coolant Potential 100 Energy Generation 50 Energy Capacity 550 Matter Stores 416 Matter Capacity 500 Sight Range 16 Terrain Scan Density 10 EM Shielding 3 Armor Coverage 1800 Resistance: KI 25 Resistance: EX 50 Resistance: EM 55 Resistance: I 25 Resistance: S 25 Resistance: P 25 Core Shielding 30 Utility Shielding 66 Melee Speed Boost 20 Evasion (%) 75 Targeting Accuracy 5 Melee Accuracy 8 Recoil Reduction 6 Item Schematics ----------------- None Robot Schematics ------------------ None Fabricated ------------ Nothing Repaired ---------- Nothing Alien Tech Used ----------------- None Achievements -------------- The Little Core That Could Challenges ------------ None Polymind | -11 -10 -10 -9 -8 -7 -7 -7 -6 -6 -6 -6 -5 -5 -5 -5 -4 -4 -4 -3 -3 -2 -2 -1 ---------- Run | Yrd Mat Min Mat Mat Fac DSF Gar Fac Low Low Zio Pro Fac Upp War Pro Fac Ext Res DSF Res Qua Acc Hosts 17 | . 1 2 3 3 . 1 . . . . . 1 . . 1 . . . . . . . 5 Combat Hostiles 16 | . 1 1 3 3 . 1 . . . . . 1 . . 1 . . . . . . . 5 Allies 1 | . . 1 . . . . . . . . . . . . . . . . . . . . . Unique Host Classes 9 | . 1 1 2 1 . 1 . . . . . . . . 1 . . . . . . . 2 Average Host Suspicion 67 | . 100 95 92 91 13 90 50 52 34 43 . 48 50 4 24 26 91 71 75 38 85 44 92 Unsuspicious Activity 725 | . . 7 163 15 . . . . 310 130 . 90 . 10 . . . . . . . . . Returns to Shadow 2 | . . . . . . . . . . 1 . 1 . . . . . . . . . . . Fuzzy Dispatches 2 | . . . . . . . . . . . . . . . . . . . . . . . 2 Protomatter Created 3536 | . . 27 100 96 . 15 16 . 50 50 . 60 . 43 1334 12 . 33 . . 1261 . 439 Used 823 | . 30 20 52 70 . 16 . . . . . 14 . . 160 . . . . . . . 461 Decayed 1590 | . . . 12 . . . . . . 50 . . . . 328 . . 33 . . 889 . 278 Highest Spend 320 | . 30 14 23 34 . 16 . . . . . 14 . . 160 . . . . . . . 320 Top 5 Hosts by Kills: ZT-ZXD(g) (-10/Mines: 9) H-55 Commando (-8/Materials: 9) B-36 Bruiser (-9/Materials: 8) G-47 Trooper (-10/Materials: 4) Y-45 Defender (-9/Materials: 4) Game ------ Seed GunTractorBeam Manual? 0 Play Time 01:18:55 Cumulative 204.0 hours Start 2025.06.17 @ 17:53:36 End 2025.06.18 @ 08:44:00 Sessions 3 Manual Loads 0 Difficulty Rogue Special Mode Winter2022/Polymind Game No. 134 Rogue 134 Adventurer 0 Explorer 0 Win Type 0 Total 14 Types 8/0/3/3/0/0/0/0/0/0 Lore% 70 Gallery% 63 Achievement% 61 Wizard Run 0 Options --------- Layout 0 ASCII 0 Keyboard 1 Movement Numpad Keybinds 0 Fullscreen 1 Font 24/Proggy Map View 76x56 Zoom Use 0% Tactical HUD 1 Map Filters NONE Filters NONE Steam 1 RUN: 781184f6-e738-4a8c-9610-b4d8d479ef55